[Event "Early-Titled-Tuesday-Blitz-February-27-2024"]
[Site "Chess.com"]
[Date "2024.02.27"]
[Round "7"]
[White "Alexander_Donchenko"]
[Black "vovachesss"]
[Result "1-0"]
[WhiteElo "2904"]
[BlackElo "2769"]
[TimeControl "180+1"]
[EndTime "9:15:17 PST"]
[Termination "Alexander_Donchenko won on time"]

1. e4 {[%clk 0:03:00.9]} 1... Nf6 {[%clk 0:02:55.3]} 2. e5 {[%clk 0:03:00.6]}
2... Nd5 {[%clk 0:02:55.9]} 3. d4 {[%clk 0:03:01.1]} 3... d6 {[%clk 0:02:56.6]}
4. c4 {[%clk 0:03:01.4]} 4... Nb6 {[%clk 0:02:56.9]} 5. exd6 {[%clk 0:03:02.3]}
5... exd6 {[%clk 0:02:57.2]} 6. Nc3 {[%clk 0:03:01.8]} 6... Be7 {[%clk
0:02:58.1]} 7. h3 {[%clk 0:03:01.5]} 7... O-O {[%clk 0:02:58.4]} 8. Nf3 {[%clk
0:03:02.2]} 8... Bf5 {[%clk 0:02:58.5]} 9. Be2 {[%clk 0:03:02.5]} 9... Nc6
{[%clk 0:02:58.7]} 10. O-O {[%clk 0:03:02.8]} 10... Bf6 {[%clk 0:02:59.1]} 11.
Be3 {[%clk 0:03:01.4]} 11... Re8 {[%clk 0:02:58.1]} 12. b3 {[%clk 0:03:00.2]}
12... h6 {[%clk 0:02:53.9]} 13. Rc1 {[%clk 0:02:59.8]} 13... Qd7 {[%clk
0:02:53.6]} 14. Re1 {[%clk 0:02:56.7]} 14... a6 {[%clk 0:02:53.8]} 15. Qd2
{[%clk 0:02:55.5]} 15... d5 {[%clk 0:02:49.9]} 16. c5 {[%clk 0:02:53.6]} 16...
Nc8 {[%clk 0:02:50.4]} 17. Bf1 {[%clk 0:02:41.7]} 17... N8e7 {[%clk 0:02:50.4]}
18. Bf4 {[%clk 0:02:38.9]} 18... Rad8 {[%clk 0:02:43.7]} 19. Ne5 {[%clk
0:02:32]} 19... Bxe5 {[%clk 0:02:31.5]} 20. Bxe5 {[%clk 0:02:31.9]} 20... Nxe5
{[%clk 0:02:28.9]} 21. Rxe5 {[%clk 0:02:32.8]} 21... c6 {[%clk 0:02:06]} 22. Na4
{[%clk 0:02:32.8]} 22... f6 {[%clk 0:01:47.5]} 23. Nb6 {[%clk 0:02:31.6]} 23...
Qc7 {[%clk 0:01:47.7]} 24. Re3 {[%clk 0:02:28.1]} 24... Bg6 {[%clk 0:01:31.9]}
25. Rce1 {[%clk 0:02:02.1]} 25... Nf5 {[%clk 0:01:31.5]} 26. Rxe8+ {[%clk
0:01:52.5]} 26... Rxe8 {[%clk 0:01:32.4]} 27. Bd3 {[%clk 0:01:48.1]} 27... Rxe1+
{[%clk 0:01:12.8]} 28. Qxe1 {[%clk 0:01:49]} 28... Ne7 {[%clk 0:01:13.6]} 29.
Qe6+ {[%clk 0:01:34.1]} 29... Kh7 {[%clk 0:01:13.6]} 30. Qd6 {[%clk 0:01:16.8]}
30... Qxd6 {[%clk 0:00:03.9]} 31. cxd6 {[%clk 0:01:17.7]} 31... c5 {[%clk
0:00:01.5]} 32. dxe7 {[%clk 0:01:16.5]} 1-0

[Event "Early-Titled-Tuesday-Blitz-February-27-2024"]
[Site "Chess.com"]
[Date "2024.02.27"]
[Round "7"]
[White "Alexchess1984"]
[Black "annacramling"]
[Result "1-0"]
[WhiteElo "2712"]
[BlackElo "2107"]
[TimeControl "180+1"]
[EndTime "9:15:21 PST"]
[Termination "Alexchess1984 won by resignation"]

1. e4 {[%clk 0:03:00.9]} 1... e6 {[%clk 0:02:56.8]} 2. d4 {[%clk 0:03:00.4]}
2... d6 {[%clk 0:02:57.4]} 3. Nf3 {[%clk 0:02:59.6]} 3... Nd7 {[%clk 0:02:56.8]}
4. Bf4 {[%clk 0:02:59.3]} 4... Nb6 {[%clk 0:02:57]} 5. Nc3 {[%clk 0:02:59.1]}
5... Ne7 {[%clk 0:02:57.6]} 6. Qd2 {[%clk 0:02:58.9]} 6... Ng6 {[%clk
0:02:58.2]} 7. Be3 {[%clk 0:02:58.5]} 7... e5 {[%clk 0:02:57]} 8. h4 {[%clk
0:02:48.8]} 8... Be7 {[%clk 0:02:09.5]} 9. g3 {[%clk 0:02:48.1]} 9... exd4
{[%clk 0:02:07.1]} 10. Nxd4 {[%clk 0:02:47.2]} 10... Ne5 {[%clk 0:02:04.5]} 11.
O-O-O {[%clk 0:02:38.7]} 11... Bg4 {[%clk 0:01:48.8]} 12. Re1 {[%clk 0:02:34.2]}
12... c5 {[%clk 0:01:25.4]} 13. Nf5 {[%clk 0:02:27.2]} 13... Bxf5 {[%clk
0:01:14.8]} 14. exf5 {[%clk 0:02:28.1]} 14... Nf3 {[%clk 0:01:14.8]} 15. Bb5+
{[%clk 0:02:24.6]} 15... Kf8 {[%clk 0:01:11.8]} 16. Qd1 {[%clk 0:02:14.2]} 16...
Nxe1 {[%clk 0:01:11.2]} 17. Rxe1 {[%clk 0:02:15.1]} 17... d5 {[%clk 0:01:07.7]}
18. Bf4 {[%clk 0:02:14]} 18... a6 {[%clk 0:00:59.6]} 19. Bf1 {[%clk 0:02:12.6]}
19... d4 {[%clk 0:00:57]} 20. Ne4 {[%clk 0:02:11.8]} 20... Nd5 {[%clk
0:00:57.3]} 21. Bd2 {[%clk 0:02:07.3]} 21... b5 {[%clk 0:00:46.1]} 22. Qg4
{[%clk 0:02:06.6]} 22... f6 {[%clk 0:00:44.8]} 23. Bg2 {[%clk 0:01:59.5]} 23...
Rc8 {[%clk 0:00:43]} 24. Qe2 {[%clk 0:01:40]} 24... c4 {[%clk 0:00:35.7]} 25.
Ng5 {[%clk 0:01:06.7]} 25... fxg5 {[%clk 0:00:23.4]} 26. Bxd5 {[%clk 0:01:06.3]}
26... Bf6 {[%clk 0:00:18.5]} 27. Bb4+ {[%clk 0:01:01.2]} 1-0

[Event "Early-Titled-Tuesday-Blitz-February-27-2024"]
[Site "Chess.com"]
[Date "2024.02.27"]
[Round "7"]
[White "Ariadna_Atreides"]
[Black "Canal_Showdrez"]
[Result "0-1"]
[WhiteElo "2187"]
[BlackElo "2005"]
[TimeControl "180+1"]
[EndTime "9:15:21 PST"]
[Termination "Canal_Showdrez won by resignation"]

1. d4 {[%clk 0:03:00.9]} 1... Nf6 {[%clk 0:02:54.2]} 2. Nf3 {[%clk 0:03:00.3]}
2... g6 {[%clk 0:02:53.4]} 3. c4 {[%clk 0:02:59.7]} 3... Bg7 {[%clk 0:02:53.9]}
4. Nc3 {[%clk 0:03:00.3]} 4... O-O {[%clk 0:02:53.1]} 5. e4 {[%clk 0:03:00.9]}
5... d6 {[%clk 0:02:53.3]} 6. h3 {[%clk 0:03:01.4]} 6... e5 {[%clk 0:02:51.1]}
7. d5 {[%clk 0:02:59.2]} 7... Nbd7 {[%clk 0:02:47.1]} 8. Be3 {[%clk 0:02:56.8]}
8... Nh5 {[%clk 0:02:42.7]} 9. g4 {[%clk 0:02:52]} 9... Nf4 {[%clk 0:02:41.7]}
10. Qd2 {[%clk 0:02:51.7]} 10... Nc5 {[%clk 0:02:29.4]} 11. Bxf4 {[%clk
0:02:24.4]} 11... exf4 {[%clk 0:02:30.3]} 12. Qxf4 {[%clk 0:02:24.4]} 12...
Bxc3+ {[%clk 0:02:28.1]} 13. bxc3 {[%clk 0:02:24.4]} 13... Nxe4 {[%clk
0:02:28.2]} 14. Bd3 {[%clk 0:02:07.8]} 14... Nxc3 {[%clk 0:02:12.6]} 15. Kd2
{[%clk 0:02:03.5]} 15... Na4 {[%clk 0:02:07.5]} 16. h4 {[%clk 0:02:01.2]} 16...
c6 {[%clk 0:01:55.6]} 17. h5 {[%clk 0:01:45.3]} 17... Qa5+ {[%clk 0:01:54.3]}
18. Ke2 {[%clk 0:01:45.5]} 18... Re8+ {[%clk 0:01:50.4]} 19. Kf1 {[%clk
0:01:45.4]} 19... Qc3 {[%clk 0:01:44.9]} 20. Kg2 {[%clk 0:00:40.4]} 20... Qxd3
{[%clk 0:01:40.6]} 21. hxg6 {[%clk 0:00:40.4]} 21... Qxg6 {[%clk 0:01:37.3]} 22.
Rh6 {[%clk 0:00:24.5]} 22... Qxg4+ {[%clk 0:01:33]} 23. Qg3 {[%clk 0:00:21.2]}
23... Qxg3+ {[%clk 0:01:31.6]} 24. Kxg3 {[%clk 0:00:21.9]} 24... Bf5 {[%clk
0:01:25.7]} 25. Rxd6 {[%clk 0:00:20]} 25... cxd5 {[%clk 0:01:23.3]} 26. Rxd5
{[%clk 0:00:19.6]} 26... Bg6 {[%clk 0:01:15.8]} 27. Rg5 {[%clk 0:00:19.2]} 27...
Rac8 {[%clk 0:01:13.1]} 28. Rc1 {[%clk 0:00:19.2]} 28... Nc5 {[%clk 0:01:09.2]}
29. Ne5 {[%clk 0:00:18.2]} 29... Ne4+ {[%clk 0:01:08.5]} 30. Kf4 {[%clk
0:00:16.7]} 30... Nxg5 {[%clk 0:01:09.4]} 31. Nxg6 {[%clk 0:00:16.7]} 31... Ne6+
{[%clk 0:01:06.1]} 0-1

[Event "Early-Titled-Tuesday-Blitz-February-27-2024"]
[Site "Chess.com"]
[Date "2024.02.27"]
[Round "7"]
[White "regenda"]
[Black "shirovin"]
[Result "1-0"]
[WhiteElo "2253"]
[BlackElo "2078"]
[TimeControl "180+1"]
[EndTime "9:15:24 PST"]
[Termination "regenda won on time"]

1. Nf3 {[%clk 0:03:00.9]} 1... Nf6 {[%clk 0:02:58.8]} 2. g3 {[%clk 0:02:58.1]}
2... g6 {[%clk 0:02:57.7]} 3. Bg2 {[%clk 0:02:58.6]} 3... d5 {[%clk 0:02:55.6]}
4. O-O {[%clk 0:02:59.5]} 4... Bg7 {[%clk 0:02:54.9]} 5. d3 {[%clk 0:03:00.4]}
5... O-O {[%clk 0:02:54.8]} 6. c3 {[%clk 0:03:01.3]} 6... c5 {[%clk 0:02:53.2]}
7. Qa4 {[%clk 0:03:01.8]} 7... Nc6 {[%clk 0:02:52.8]} 8. Qh4 {[%clk 0:03:02.4]}
8... e5 {[%clk 0:02:44]} 9. Bg5 {[%clk 0:03:02.4]} 9... Bf5 {[%clk 0:02:28.2]}
10. e4 {[%clk 0:02:53]} 10... dxe4 {[%clk 0:02:22.7]} 11. dxe4 {[%clk
0:02:53.9]} 11... Be6 {[%clk 0:02:19.3]} 12. Na3 {[%clk 0:02:45.7]} 12... Qe7
{[%clk 0:02:01.9]} 13. Nc2 {[%clk 0:02:30]} 13... Rad8 {[%clk 0:01:58.8]} 14.
Ne3 {[%clk 0:02:28.1]} 14... b5 {[%clk 0:01:47.2]} 15. Rfd1 {[%clk 0:02:18.7]}
15... Rxd1+ {[%clk 0:01:41.9]} 16. Rxd1 {[%clk 0:02:18.5]} 16... Bxa2 {[%clk
0:01:32.9]} 17. Ra1 {[%clk 0:01:43.6]} 17... Bb3 {[%clk 0:01:28]} 18. Ra6 {[%clk
0:01:39.9]} 18... Nd8 {[%clk 0:01:17]} 19. Ng4 {[%clk 0:01:27.6]} 19... Ne6
{[%clk 0:00:52.4]} 20. Nxf6+ {[%clk 0:01:12.9]} 20... Bxf6 {[%clk 0:00:50.7]}
21. Bxf6 {[%clk 0:01:13.8]} 21... Qd7 {[%clk 0:00:39.6]} 22. Qh6 {[%clk
0:01:03.8]} 22... Qd1+ {[%clk 0:00:32.2]} 23. Bf1 {[%clk 0:01:03.9]} 23... Bc4
{[%clk 0:00:31.9]} 24. Nd2 {[%clk 0:01:03.1]} 24... Bxf1 {[%clk 0:00:14]} 25.
Nxf1 {[%clk 0:01:01.3]} 25... Qf3 {[%clk 0:00:09.9]} 26. Rxe6 {[%clk 0:00:59.9]}
1-0

[Event "Early-Titled-Tuesday-Blitz-February-27-2024"]
[Site "Chess.com"]
[Date "2024.02.27"]
[Round "7"]
[White "francyIM"]
[Black "Pedrada88"]
[Result "1-0"]
[WhiteElo "2787"]
[BlackElo "2580"]
[TimeControl "180+1"]
[EndTime "9:15:25 PST"]
[Termination "francyIM won by resignation"]

1. e4 {[%clk 0:03:00.9]} 1... c5 {[%clk 0:02:59.8]} 2. Nf3 {[%clk 0:02:58.8]}
2... Nc6 {[%clk 0:02:58.5]} 3. Bb5 {[%clk 0:02:54.6]} 3... Qb6 {[%clk
0:02:58.6]} 4. Nc3 {[%clk 0:02:45.1]} 4... e6 {[%clk 0:02:58.6]} 5. O-O {[%clk
0:02:44.5]} 5... Nge7 {[%clk 0:02:58.5]} 6. Re1 {[%clk 0:02:44.9]} 6... a6
{[%clk 0:02:59]} 7. Bf1 {[%clk 0:02:45.2]} 7... Ng6 {[%clk 0:02:59.5]} 8. e5
{[%clk 0:02:43.7]} 8... d6 {[%clk 0:02:53.6]} 9. exd6 {[%clk 0:02:43]} 9... Bxd6
{[%clk 0:02:54.5]} 10. b3 {[%clk 0:02:43.4]} 10... O-O {[%clk 0:02:51.7]} 11.
Bb2 {[%clk 0:02:43.3]} 11... e5 {[%clk 0:02:49.7]} 12. Ne4 {[%clk 0:02:42.6]}
12... Qc7 {[%clk 0:02:40.3]} 13. d3 {[%clk 0:02:42]} 13... f5 {[%clk 0:02:35.4]}
14. Nxd6 {[%clk 0:02:41.2]} 14... Qxd6 {[%clk 0:02:36.3]} 15. Nd2 {[%clk
0:02:41.4]} 15... b5 {[%clk 0:02:33.8]} 16. a4 {[%clk 0:02:35.1]} 16... Bb7
{[%clk 0:02:30.2]} 17. axb5 {[%clk 0:02:35.1]} 17... axb5 {[%clk 0:02:31.1]} 18.
c3 {[%clk 0:02:33.1]} 18... Kh8 {[%clk 0:02:28.6]} 19. Qc2 {[%clk 0:02:32.1]}
19... Rxa1 {[%clk 0:02:19.9]} 20. Rxa1 {[%clk 0:02:32]} 20... Rd8 {[%clk
0:02:11.4]} 21. Nf3 {[%clk 0:02:30.8]} 21... Nf4 {[%clk 0:02:08.9]} 22. Rd1
{[%clk 0:02:28.8]} 22... e4 {[%clk 0:02:05.3]} 23. Ne1 {[%clk 0:02:29.2]} 23...
exd3 {[%clk 0:01:49]} 24. Nxd3 {[%clk 0:01:46.3]} 24... c4 {[%clk 0:01:45]} 25.
bxc4 {[%clk 0:01:46.2]} 25... bxc4 {[%clk 0:01:44.6]} 26. Nxf4 {[%clk
0:01:42.8]} 26... Qxd1 {[%clk 0:01:43.7]} 27. Qxf5 {[%clk 0:01:43.1]} 27... Ne7
{[%clk 0:01:18.6]} 28. Qg5 {[%clk 0:01:35.5]} 28... Rd7 {[%clk 0:00:18.1]} 29.
Ba3 {[%clk 0:01:33.5]} 29... Ng8 {[%clk 0:00:15.2]} 30. Bc5 {[%clk 0:01:31.3]}
30... Be4 {[%clk 0:00:12.5]} 31. Qh5 {[%clk 0:01:10.8]} 31... Bd3 {[%clk
0:00:09.6]} 32. Qxd1 {[%clk 0:01:10.3]} 1-0

[Event "Early-Titled-Tuesday-Blitz-February-27-2024"]
[Site "Chess.com"]
[Date "2024.02.27"]
[Round "7"]
[White "aistrel"]
[Black "Doublekk14"]
[Result "1-0"]
[WhiteElo "2545"]
[BlackElo "2309"]
[TimeControl "180+1"]
[EndTime "9:15:30 PST"]
[Termination "aistrel won on time"]

1. d4 {[%clk 0:03:00.9]} 1... Nf6 {[%clk 0:02:55.7]} 2. Nc3 {[%clk 0:02:59.1]}
2... d5 {[%clk 0:02:54.7]} 3. Bf4 {[%clk 0:02:58.5]} 3... e6 {[%clk 0:02:53.1]}
4. Nb5 {[%clk 0:02:58.3]} 4... Na6 {[%clk 0:02:50.3]} 5. e3 {[%clk 0:02:58.6]}
5... c6 {[%clk 0:02:16.8]} 6. Nc3 {[%clk 0:02:58.6]} 6... Nc7 {[%clk 0:02:15.3]}
7. Nf3 {[%clk 0:02:57.8]} 7... Bd6 {[%clk 0:02:07.7]} 8. Bd3 {[%clk 0:02:57.1]}
8... O-O {[%clk 0:01:56.5]} 9. Ne5 {[%clk 0:02:56.6]} 9... Bb4 {[%clk
0:00:55.8]} 10. Qf3 {[%clk 0:02:14.3]} 10... Nce8 {[%clk 0:00:49]} 11. g4 {[%clk
0:02:02.8]} 11... Nd6 {[%clk 0:00:43.5]} 12. Bg5 {[%clk 0:01:45.4]} 12... Bxc3+
{[%clk 0:00:39.1]} 13. bxc3 {[%clk 0:01:44.2]} 13... h6 {[%clk 0:00:38.9]} 14.
h4 {[%clk 0:01:08.8]} 14... Nde4 {[%clk 0:00:25.4]} 15. Bxe4 {[%clk 0:00:59.8]}
15... dxe4 {[%clk 0:00:24.4]} 16. Qg2 {[%clk 0:00:43.9]} 16... c5 {[%clk
0:00:14]} 17. Bxf6 {[%clk 0:00:40.7]} 17... gxf6 {[%clk 0:00:13.9]} 18. g5
{[%clk 0:00:40.4]} 18... h5 {[%clk 0:00:07.5]} 19. gxf6+ {[%clk 0:00:39.6]} 1-0

[Event "Early-Titled-Tuesday-Blitz-February-27-2024"]
[Site "Chess.com"]
[Date "2024.02.27"]
[Round "7"]
[White "GHANDEEVAM2003"]
[Black "vi_pranav"]
[Result "1-0"]
[WhiteElo "3052"]
[BlackElo "3113"]
[TimeControl "180+1"]
[EndTime "9:15:31 PST"]
[Termination "GHANDEEVAM2003 won by checkmate"]

1. a3 {[%clk 0:03:00.9]} 1... g6 {[%clk 0:02:55.2]} 2. d4 {[%clk 0:02:58.3]}
2... Bg7 {[%clk 0:02:54.3]} 3. e4 {[%clk 0:02:58.4]} 3... d6 {[%clk 0:02:44.1]}
4. Nc3 {[%clk 0:02:58.1]} 4... Nc6 {[%clk 0:02:40.9]} 5. Be3 {[%clk 0:02:55.8]}
5... Nf6 {[%clk 0:02:38.2]} 6. f3 {[%clk 0:02:49.6]} 6... e5 {[%clk 0:02:36.9]}
7. d5 {[%clk 0:02:47.2]} 7... Ne7 {[%clk 0:02:35.5]} 8. Qd2 {[%clk 0:02:46.7]}
8... c6 {[%clk 0:02:26.9]} 9. g4 {[%clk 0:02:27.9]} 9... cxd5 {[%clk 0:02:15.9]}
10. exd5 {[%clk 0:02:28.8]} 10... O-O {[%clk 0:02:11.4]} 11. h4 {[%clk
0:02:17.4]} 11... h5 {[%clk 0:02:09.9]} 12. g5 {[%clk 0:02:17.3]} 12... Ne8
{[%clk 0:02:07.6]} 13. Ne4 {[%clk 0:02:15.7]} 13... Nf5 {[%clk 0:02:04.4]} 14.
Bf2 {[%clk 0:02:15.3]} 14... Bd7 {[%clk 0:02:04.4]} 15. c4 {[%clk 0:02:11.7]}
15... b6 {[%clk 0:02:01]} 16. Ne2 {[%clk 0:02:10.1]} 16... Rc8 {[%clk
0:01:59.5]} 17. Rc1 {[%clk 0:02:07.2]} 17... f6 {[%clk 0:01:50.3]} 18. Bh3
{[%clk 0:01:56.4]} 18... fxg5 {[%clk 0:01:13.8]} 19. Qxg5 {[%clk 0:01:57.3]}
19... Qxg5 {[%clk 0:01:09.7]} 20. hxg5 {[%clk 0:01:58.2]} 20... Kf7 {[%clk
0:01:04.3]} 21. b4 {[%clk 0:01:52.7]} 21... Rh8 {[%clk 0:00:52.6]} 22. Kd2
{[%clk 0:01:50.8]} 22... Bf8 {[%clk 0:00:52.2]} 23. Rc3 {[%clk 0:01:32.2]} 23...
Be7 {[%clk 0:00:50.6]} 24. f4 {[%clk 0:01:24.5]} 24... exf4 {[%clk 0:00:44.4]}
25. Nxf4 {[%clk 0:01:25.4]} 25... Neg7 {[%clk 0:00:44.8]} 26. c5 {[%clk
0:01:20.9]} 26... bxc5 {[%clk 0:00:31.9]} 27. bxc5 {[%clk 0:01:21.8]} 27... dxc5
{[%clk 0:00:09.3]} 28. Nd3 {[%clk 0:01:22.1]} 28... Rhd8 {[%clk 0:00:05.3]} 29.
Ne5+ {[%clk 0:01:22.2]} 29... Kg8 {[%clk 0:00:05.8]} 30. Nxg6 {[%clk 0:01:21.9]}
30... Bf8 {[%clk 0:00:06]} 31. Nf6+ {[%clk 0:01:20.8]} 31... Kf7 {[%clk
0:00:06.3]} 32. Ne5+ {[%clk 0:01:21]} 32... Ke7 {[%clk 0:00:06.2]} 33. Nexd7
{[%clk 0:01:19.8]} 33... Nd4 {[%clk 0:00:04.2]} 34. Re1+ {[%clk 0:01:17.9]}
34... Kd6 {[%clk 0:00:03.7]} 35. Bg3# {[%clk 0:01:17.5]} 1-0

[Event "Early-Titled-Tuesday-Blitz-February-27-2024"]
[Site "Chess.com"]
[Date "2024.02.27"]
[Round "7"]
[White "GreenPeach24"]
[Black "MyDream003"]
[Result "0-1"]
[WhiteElo "2482"]
[BlackElo "2719"]
[TimeControl "180+1"]
[EndTime "9:15:32 PST"]
[Termination "MyDream003 won by resignation"]

1. d4 {[%clk 0:02:51.8]} 1... Nf6 {[%clk 0:02:59.4]} 2. Bf4 {[%clk 0:02:50.9]}
2... g6 {[%clk 0:02:54.6]} 3. Nc3 {[%clk 0:02:48.6]} 3... d5 {[%clk 0:02:51.5]}
4. e3 {[%clk 0:02:48.6]} 4... Bg7 {[%clk 0:02:51.4]} 5. Be2 {[%clk 0:02:48.5]}
5... O-O {[%clk 0:02:46]} 6. h4 {[%clk 0:02:48.6]} 6... c5 {[%clk 0:02:45.4]} 7.
h5 {[%clk 0:02:46.6]} 7... Nc6 {[%clk 0:02:45.1]} 8. hxg6 {[%clk 0:02:37.7]}
8... hxg6 {[%clk 0:02:45]} 9. Nf3 {[%clk 0:02:37.8]} 9... Bg4 {[%clk 0:02:28.5]}
10. Ne5 {[%clk 0:02:29.3]} 10... Bxe2 {[%clk 0:02:19.6]} 11. Qxe2 {[%clk
0:02:27.8]} 11... cxd4 {[%clk 0:02:16.5]} 12. Nxc6 {[%clk 0:02:27]} 12... bxc6
{[%clk 0:02:17.4]} 13. exd4 {[%clk 0:02:27.3]} 13... c5 {[%clk 0:02:17.9]} 14.
Be5 {[%clk 0:02:05.9]} 14... cxd4 {[%clk 0:02:17.4]} 15. Bxd4 {[%clk 0:02:05.2]}
15... e5 {[%clk 0:01:47.8]} 16. Bxe5 {[%clk 0:02:03.7]} 16... Re8 {[%clk
0:01:48.4]} 17. f4 {[%clk 0:02:03.1]} 17... Nd7 {[%clk 0:01:47.1]} 18. O-O-O
{[%clk 0:01:54]} 18... Nxe5 {[%clk 0:01:47.4]} 19. fxe5 {[%clk 0:01:53.7]} 19...
Rxe5 {[%clk 0:01:47.3]} 20. Qf3 {[%clk 0:01:48.3]} 20... Rb8 {[%clk 0:01:42.7]}
21. Nxd5 {[%clk 0:01:15.2]} 21... Qg5+ {[%clk 0:01:31.3]} 22. Kb1 {[%clk
0:01:10.2]} 22... Rxd5 {[%clk 0:01:05.2]} 23. c3 {[%clk 0:01:08.6]} 23... Rdb5
{[%clk 0:00:52.6]} 24. b3 {[%clk 0:01:08]} 24... Qc5 {[%clk 0:00:38.6]} 25. Rd3
{[%clk 0:00:49.9]} 25... Qa3 {[%clk 0:00:31.3]} 26. Rd7 {[%clk 0:00:43]} 26...
Rxb3+ {[%clk 0:00:28.6]} 27. axb3 {[%clk 0:00:42.7]} 27... Rxb3+ {[%clk
0:00:29.5]} 28. Kc2 {[%clk 0:00:43.2]} 28... Rxc3+ {[%clk 0:00:29.9]} 29. Qxc3
{[%clk 0:00:37.2]} 29... Qxc3+ {[%clk 0:00:30.8]} 30. Kd1 {[%clk 0:00:38.1]}
30... Qb3+ {[%clk 0:00:30.4]} 31. Ke1 {[%clk 0:00:38.5]} 31... Qe6+ {[%clk
0:00:29.5]} 0-1

[Event "Early-Titled-Tuesday-Blitz-February-27-2024"]
[Site "Chess.com"]
[Date "2024.02.27"]
[Round "7"]
[White "Kazancev_Valerij_M"]
[Black "MusicCityMaster"]
[Result "0-1"]
[WhiteElo "2402"]
[BlackElo "2563"]
[TimeControl "180+1"]
[EndTime "9:15:33 PST"]
[Termination "MusicCityMaster won on time"]

1. c4 {[%clk 0:02:55.1]} 1... e5 {[%clk 0:02:59.6]} 2. g3 {[%clk 0:02:53]} 2...
c6 {[%clk 0:02:57.8]} 3. d4 {[%clk 0:02:47.9]} 3... exd4 {[%clk 0:02:55]} 4.
Qxd4 {[%clk 0:02:47.3]} 4... d5 {[%clk 0:02:54.8]} 5. cxd5 {[%clk 0:02:45.3]}
5... Nf6 {[%clk 0:02:55]} 6. Nc3 {[%clk 0:02:39]} 6... cxd5 {[%clk 0:02:48.2]}
7. Bg5 {[%clk 0:02:36.3]} 7... Be7 {[%clk 0:02:46.6]} 8. Rd1 {[%clk 0:02:16.8]}
8... Nc6 {[%clk 0:02:44.7]} 9. Qa4 {[%clk 0:02:16.3]} 9... Be6 {[%clk
0:02:39.6]} 10. Bg2 {[%clk 0:02:14.4]} 10... O-O {[%clk 0:02:36]} 11. Nf3 {[%clk
0:02:12.9]} 11... h6 {[%clk 0:02:25.7]} 12. Bf4 {[%clk 0:01:42.8]} 12... a6
{[%clk 0:02:19.5]} 13. O-O {[%clk 0:01:35.5]} 13... Qb6 {[%clk 0:02:18.7]} 14.
Qc2 {[%clk 0:01:19.8]} 14... Rac8 {[%clk 0:02:17.6]} 15. Qb1 {[%clk 0:01:14.7]}
15... Rfd8 {[%clk 0:02:15.3]} 16. Na4 {[%clk 0:00:51.1]} 16... Qa5 {[%clk
0:02:12.9]} 17. b3 {[%clk 0:00:49.8]} 17... b5 {[%clk 0:02:08.9]} 18. Bd2 {[%clk
0:00:46.9]} 18... Bb4 {[%clk 0:01:57.5]} 19. Nb2 {[%clk 0:00:24.5]} 19... Bxd2
{[%clk 0:01:53.1]} 20. Nxd2 {[%clk 0:00:25]} 20... Nb4 {[%clk 0:01:47.6]} 21. a4
{[%clk 0:00:20.9]} 21... Nc2 {[%clk 0:01:36.1]} 22. axb5 {[%clk 0:00:19.6]}
22... axb5 {[%clk 0:01:35.8]} 23. Nd3 {[%clk 0:00:18.9]} 23... Nd4 {[%clk
0:01:35.2]} 24. Rfe1 {[%clk 0:00:12.9]} 24... b4 {[%clk 0:01:31.5]} 25. e3
{[%clk 0:00:09.1]} 25... Nb5 {[%clk 0:01:29.9]} 26. Qb2 {[%clk 0:00:06.8]} 26...
Nc3 {[%clk 0:01:29.5]} 27. Ra1 {[%clk 0:00:05.6]} 27... Qb5 {[%clk 0:01:29.8]}
28. Bf1 {[%clk 0:00:04.4]} 28... Nfe4 {[%clk 0:01:14.8]} 29. Nf4 {[%clk
0:00:03.6]} 29... Qb6 {[%clk 0:01:10.9]} 30. Nxe6 {[%clk 0:00:02.3]} 30... Qxe6
{[%clk 0:01:09.5]} 0-1

[Event "Early-Titled-Tuesday-Blitz-February-27-2024"]
[Site "Chess.com"]
[Date "2024.02.27"]
[Round "7"]
[White "phantom19801127"]
[Black "Felix-Rose"]
[Result "1-0"]
[WhiteElo "2535"]
[BlackElo "2265"]
[TimeControl "180+1"]
[EndTime "9:15:35 PST"]
[Termination "phantom19801127 won on time"]

1. d4 {[%clk 0:02:54.1]} 1... d5 {[%clk 0:02:59.6]} 2. Nf3 {[%clk 0:02:53.3]}
2... Nf6 {[%clk 0:02:59.7]} 3. c4 {[%clk 0:02:52.8]} 3... e6 {[%clk 0:02:59.9]}
4. Nc3 {[%clk 0:02:52.6]} 4... Nbd7 {[%clk 0:02:58.5]} 5. Bg5 {[%clk 0:02:52.4]}
5... Be7 {[%clk 0:02:58.6]} 6. e3 {[%clk 0:02:52.3]} 6... h6 {[%clk 0:02:57.9]}
7. Bh4 {[%clk 0:02:51.8]} 7... O-O {[%clk 0:02:56.2]} 8. cxd5 {[%clk 0:02:50.3]}
8... Nxd5 {[%clk 0:02:55.9]} 9. Bg3 {[%clk 0:02:49.9]} 9... Nxc3 {[%clk
0:02:38.5]} 10. bxc3 {[%clk 0:02:49.3]} 10... c5 {[%clk 0:02:39.2]} 11. Bd3
{[%clk 0:02:47.5]} 11... Nf6 {[%clk 0:02:35.7]} 12. O-O {[%clk 0:02:46.5]} 12...
b6 {[%clk 0:02:35]} 13. Qb1 {[%clk 0:02:27]} 13... Bb7 {[%clk 0:02:32.3]} 14. e4
{[%clk 0:02:27.4]} 14... Nh5 {[%clk 0:02:03.7]} 15. Be5 {[%clk 0:02:25]} 15...
f6 {[%clk 0:01:40.4]} 16. Bg3 {[%clk 0:02:24.5]} 16... Nxg3 {[%clk 0:01:31.9]}
17. hxg3 {[%clk 0:02:24.5]} 17... Kh8 {[%clk 0:00:58.9]} 18. Qb3 {[%clk
0:02:21.8]} 18... Qd7 {[%clk 0:00:33.9]} 19. Rfe1 {[%clk 0:02:16.5]} 19... cxd4
{[%clk 0:00:30.1]} 20. cxd4 {[%clk 0:02:16]} 20... Rac8 {[%clk 0:00:30.4]} 21.
Nh4 {[%clk 0:01:58.3]} 21... Rfe8 {[%clk 0:00:27.8]} 22. Rad1 {[%clk 0:01:37]}
22... a5 {[%clk 0:00:22.6]} 23. Ng6+ {[%clk 0:01:29.5]} 23... Kg8 {[%clk
0:00:21.4]} 24. Bc4 {[%clk 0:01:27]} 24... Bb4 {[%clk 0:00:17.9]} 25. Re3 {[%clk
0:01:21.6]} 25... b5 {[%clk 0:00:05.9]} 26. Bf1 {[%clk 0:01:12.6]} 26... Qc6
{[%clk 0:00:06.1]} 27. a3 {[%clk 0:01:09.3]} 27... Bd6 {[%clk 0:00:01.8]} 28.
Bxb5 {[%clk 0:01:08.4]} 1-0